Cogmind - Beta 13 @@@ ROGUE MODE // 2024.04.19 @ 03:05:18 Player: Exceptionally Mediocre Result: Destroyed by D-53 Grenadier with Mini Grenade Launcher Performance ------------- Evolutions (0) 0 Regions Visited (2) 400 Robots Destroyed (35) 175 Value Destroyed (392) 392 Prototype IDs (0) 0 Alien Tech Used (0) 0 Bonus (-48) -48 TOTAL SCORE: 919 Bonus ------- Friendly Fire -48 Cogmind --------- Core Integrity 0/250 Matter 117/300 Energy 132/265 System Corruption 2% Temperature Cool (0) Movement Treading (240) Ox1 Location -10/Mines Parts ------- > --- POWER (1) -------- Improved Ion Engine > --- PROPULSION (2) --- Light Treads > --- UTILITY (2) ------ Large Storage Unit Structural Scanner > --- WEAPON (2) ------- Light Assault Rifle Rocket Launcher > --- INVENTORY (15) --- Improved Ion Engine Improved Ion Engine Light Treads Cooling System High-capacity Matter Pod (181) Utility Shielding Medium Armor Plating Medium Armor Plating Medium Armor Plating Medium Armor Plating Rocket Launcher Flail Flail Peak State ------------ > --- POWER ------------ Improved Ion Engine > --- PROPULSION ------- Light Treads Light Treads > --- UTILITY ---------- Large Storage Unit Structural Scanner > --- WEAPON ----------- Medium Laser Light Assault Rifle > --- INVENTORY -------- Improved Ion Engine Light Treads High-capacity Matter Pod Medium Armor Plating Medium Armor Plating Medium Armor Plating Medium Armor Plating Authchip [R/Combat] Authchip [R/Combat] Light Assault Rifle Grenade Launcher Rocket Launcher Rocket Launcher Flail Flail [Rating: 11] Favorites ----------- Power Light Ion Engine Engine Light Ion Engine Propulsion Light Treads Treads Light Treads Utility Small Storage Unit Device Structural Scanner Storage Small Storage Unit Processor Signal Interpreter Weapon Light Assault Rifle Energy Gun Medium Laser Ballistic Gun Light Assault Rifle Launcher Rocket Launcher Impact Weapon Flail Build | -11 -10 -10 ------- Run | Yrd Mat Min Slots Evolved . | . . . Power . | . . . Propulsion . | . . . Utility . | . . . Weapon . | . . . Parts Attached 35 | 8 21 6 Power 8 | 1 6 1 Engine 8 | 1 6 1 Core . | . . . Reactor . | . . . Propulsion 9 | 2 7 . Treads 9 | 2 7 . Leg . | . . . Wheel . | . . . Hover . | . . . Flight . | . . . Utility 4 | 1 3 . Device 1 | . 1 . Storage 2 | 1 1 . Processor 1 | . 1 . Hackware . | . . . Protection . | . . . Artifact . | . . . Weapon 14 | 4 5 5 Energy Gun 3 | 1 2 . Energy Cannon . | . . . Ballistic Gun 6 | 3 2 1 Ballistic Cannon . | . . . Launcher 4 | . 1 3 Special Weapon . | . . . Impact Weapon 1 | . . 1 Slashing Weapon . | . . . Piercing Weapon . | . . . Special Melee Weapon . | . . . Unidentified Prototypes . | . . . Parts Lost 8 | . 5 3 Power 3 | . 2 1 Propulsion 2 | . 1 1 Utility . | . . . Weapon 3 | . 2 1 Highest Loss Streak 3 | . 3 3 To Critical Strikes . | . . . Average Slot Usage (%) 98 | . 98 98 Engine 13 | . 13 13 Treads 27 | . 27 27 Device 7 | . 6 14 Storage 14 | . 14 14 Processor 6 | . 7 . Energy Gun 12 | . 12 12 Ballistic Gun 13 | . 15 . Launcher 1 | . . 13 Naked Turns . | . . . Heaviest Build 34 | 14 31 34 Greatest Support 40 | 40 40 40 Greatest Overweight (x) 4 | 4 3 . Average Overweight (x) . | . . . Largest Inventory Capacity 15 | 8 15 15 Average Capacity 9 | 7 9 15 Most Carried 15 | 8 15 15 Average Carried 8 | 2 8 14 Final Capacity 15 | 8 15 15 Final Carried 15 | 8 15 13 Class Distribution -------------------- 100% | Mutant Dominant Class ---------------- Mutant | -10/Materials Mutant | -10/Mines Resources | -11 -10 -10 ----------- Run | Yrd Mat Min Matter Collected 837 | 265 572 . Remotely . | . . . Salvage Created 929 | 130 766 33 Parts 78 | 9 69 . Haulers Intercepted 2 | . 2 . Recyclers Shooed 5 | 1 3 1 Parts Field Recycled . | . . . Retrieved Matter . | . . . Parts Self-Destructed . | . . . Prevented . | . . . Kills | -11 -10 -10 ------- Run | Yrd Mat Min Combat Hostiles Destroyed 22 | . 13 9 Guns 11 | . 11 . AOE 11 | . 2 9 Classes Destroyed 10 | 3 6 1 Worker 3 | 1 2 . Builder 6 | . 6 . Tunneler 3 | 2 1 . Hauler 2 | . 2 . Recycler 3 | 1 2 . Operator 2 | . 2 . Watcher 3 | . 3 . Swarmer 9 | . 9 . Grunt 4 | . 4 . Assembled 9 | . . 9 Best Kill Streak 9 | 3 8 9 Combat Bots Only 9 | . 8 9 Max Kills in Single Turn 4 | 1 2 4 Gunslinging . | . . . Exploded 4 | . 2 4 Melee . | . . . Uniques/NPCs Destroyed . | . . . Combat | -11 -10 -10 -------- Run | Yrd Mat Min Hostile Shots Fired 118 | . 103 15 Missed 26 | . 25 1 Damage Taken 1425 | . 796 629 Core 250 | . 113 137 Absorbed by Shields . | . . . Regen/Repaired (Parts) 104 | . 104 . Core Remaining (%) 100 | 100 . . Volleys Fired 108 | 13 85 10 Largest 2 | 2 2 2 Hottest 70 | 40 70 53 Shots Fired 206 | 26 168 12 Gun 198 | 26 167 5 Cannon . | . . . Launcher 8 | . 1 7 Special . | . . . Kinetic 141 | 26 111 4 Thermal 57 | . 56 1 Explosive 8 | . 1 7 Electromagnetic . | . . . Robot Hit Streak 12 | 5 12 1 Robot Miss Streak 6 | 3 6 3 Penetration Max . | . . . Secondary Targets 4 | . 4 . Max Gunslinging Chain 1 | . 1 . Shots Hit Robots 106 | 15 87 4 Core Hits 70 | 6 41 23 Critical Kills . | . . . Critical Parts Destroyed 1 | . . 1 Critical Strikes 2 | . 1 1 Burn 1 | . 1 . Smash 1 | . . 1 Melee Attacks 1 | . . 1 Impact 1 | . . 1 Slashing . | . . . Piercing . | . . . Sneak Attacks . | . . . Combat Hostiles . | . . . Follow-up Attacks . | . . . Damage Inflicted 1807 | 169 1028 610 Guns 1136 | 169 951 16 Cannons . | . . . Explosions 645 | . 75 570 Melee 24 | . . 24 Ramming 2 | . 2 . Kinetic 689 | 169 504 16 Thermal 447 | . 447 . Explosive 645 | . 75 570 Electromagnetic . | . . . Impact 24 | . . 24 Slashing . | . . . Piercing . | . . . Highest Corruption 2 | . 2 2 Average Corruption 2 | . 2 2 Corruption Purged . | . . . Corruption Blocked . | . . . Effects 24 | . 20 4 Message Errors 4 | . 4 . Matter Fused 2 | . 2 . Heat Flow Errors 1 | . . 1 Energy Discharges 8 | . 8 . Parts Rejected 1 | . . 1 Parts Fused 1 | . 1 . Data Loss (minor) 3 | . 3 . Data Loss (major) 2 | . 1 1 Misfires 1 | . 1 . Weapon Failures 1 | . . 1 Overload Shots . | . . . Overflow Damage 24 | . . 24 Projectiles . | . . . Explosions . | . . . Melee 24 | . . 24 Knockbacks . | . . . Impact . | . . . Kinetic . | . . . Secondary . | . . . Self-Inflicted Damage 59 | . . 59 Shots 2 | . . 2 Rammed 1 | . 1 . Targets Rammed 1 | . 1 . Kicked . | . . . Crushed . | . . . Highest Temperature 230 | . 80 230 Average Temperature 30 | . 24 71 Received Heat Transfer 146 | . 126 20 Siege Activations . | . . . Robots Corrupted . | . . . Combat Hostiles . | . . . Parts Fried . | . . . Impact Corruptions 1 | . . 1 Robots Melted . | . . . Combat Hostiles . | . . . Parts Melted . | . . . Heat Transferred 1406 | . 1406 . Parts Sabotaged . | . . . Parts Stolen . | . . . Parts Stripped . | . . . Power Chain Reactions . | . . . Alert | -11 -10 -10 ------- Run | Yrd Mat Min Peak Influence 260 | 20 260 36 Initial 15 | . 13 15 Average 56 | 8 64 16 Maximum Alert Level 1 | . 1 . Low Security (%) 92 | 100 90 100 Level 1 7 | . 9 . Level 2 . | . . . Level 3 . | . . . Level 4 . | . . . Level 5 . | . . . High Security . | . . . Max Security . | . . . Squads Dispatched 3 | . 2 1 Investigation . | . . . Extermination . | . . . Reinforcement 2 | . 2 . Assault 1 | . . 1 Garrison . | . . . Intercept . | . . . Searches Triggered . | . . . Construction Impeded . | . . . Haulers Reinforced . | . . . Active Scanning Responses . | . . . Cargo Convoy Interrupts . | . . . Stealth | -11 -10 -10 --------- Run | Yrd Mat Min Distress Signals . | . . . Communications Jammed . | . . . Distress Signals . | . . . Times Spotted 43 | . 21 22 Peak Tracking Total 15 | . 7 15 Tactical Retreats 1 | . 1 . Traps | -11 -10 -10 ------- Run | Yrd Mat Min Traps Triggered 4 | . 4 . Indirectly . | . . . Trap Hack Attempts . | . . . Triggered . | . . . Disarmed . | . . . Reprogrammed . | . . . Reused . | . . . Traps Extracted . | . . . Installed . | . . . Triggered . | . . . Machines | -11 -10 -10 ---------- Run | Yrd Mat Min Machines Disabled 1 | . . 1 Max in Single Turn 1 | . . 1 Machines Repaired . | . . . Machines Dismantled . | . . . Machines Sabotaged . | . . . Overloaded Fab Kills . | . . . Hacking | -11 -10 -10 --------- Run | Yrd Mat Min Machines Accessed 8 | . 8 . Terminals 5 | . 5 . Fabricators . | . . . Repair Stations 1 | . 1 . Recycling Units 2 | . 2 . Scanalyzers . | . . . Garrison Access . | . . . Total Hacks 13 | . 13 . Successful 9 | . 9 . Failed 4 | . 4 . Catastrophic . | . . . Database Lockouts . | . . . Manual 7 | . 7 . Terminals 7 | . 7 . Fabricators . | . . . Repair Stations 2 | . 2 . Recycling Units 4 | . 4 . Scanalyzers . | . . . Garrison Access . | . . . Terminal Hacks . | . . . Fabricator Hacks . | . . . Repair Station Hacks 2 | . 2 . Scan Component 1 | . 1 . Repair 1 | . 1 . Recycling Unit Hacks 2 | . 2 . Retrieve Components 2 | . 2 . Scanalyzer . | . . . Garrison Access Hacks . | . . . Unauthorized Hacks 5 | . 5 . Terminals 5 | . 5 . Botnet 5 | . 5 . Fabricators . | . . . Repair Stations . | . . . Recycling Units . | . . . Scanalyzers . | . . . Garrison Access . | . . . Data Cores Recovered . | . . . Used . | . . . Hacking Detections 4 | . 4 . Full Trace Events 1 | . 1 . Feedback Events . | . . . Feedback Blocked . | . . . Robot Schematics Acquired . | . . . Robots Built . | . . . Authchips . | . . . Time . | . . . Total Robot Build Rating . | . . . Part Schematics Acquired . | . . . Parts Built . | . . . Authchips . | . . . Time . | . . . Total Part Build Rating . | . . . Parts Repaired 1 | . 1 . Time 26 | . 26 . Parts Recycled . | . . . Recycled Matter . | . . . Retrieved Matter . | . . . Retrieved Components 11 | . 11 . Parts Scanalyzed . | . . . Part Schematics Acquired . | . . . Parts Damaged . | . . . Bothacking | -11 -10 -10 ------------ Run | Yrd Mat Min Used RIF Installer . | . . . Robots Hacked . | . . . Non-combat . | . . . Combat . | . . . Robot Hacks Applied . | . . . Relay Couplers Released . | . . . Fabnet Peak Effective % . | . . . Robots Rewired . | . . . Allies Hacked . | . . . Hacks Repelled . | . . . Allies | -11 -10 -10 -------- Run | Yrd Mat Min Total Allies 1 | . . 1 Largest Group 1 | . . 1 Highest-Rated Group 31 | . . 31 Highest-Rated Ally 31 | . . 31 Total Orders . | . . . Ally Attacks 3 | . . 3 Total Damage 42 | . . 42 Kills 1 | . . 1 Allies Corrupted . | . . . Allies Melted . | . . . Intel | -11 -10 -10 ------- Run | Yrd Mat Min Robot Analysis Total . | . . . Derelict Logs Recovered 1 | . . 1 Drone Launches . | . . . Drone Recoveries . | . . . Exploration | -11 -10 -10 ------------- Run | Yrd Mat Min Turns Passed 2578 | 150 2169 259 Spaces Moved 1342 | 64 1149 129 Core 21 | 18 3 . Treads 1321 | 46 1146 129 Legs . | . . . Wheels . | . . . Hover . | . . . Flight . | . . . Fastest Speed 50 | 50 160 160 Average Speed 159 | 149 160 160 Slowest Speed 250 | 250 200 160 Overloaded Moves . | . . . Propulsion Burnouts . | . . . Robots Hopped . | . . . Cave-ins Triggered . | . . . Exploration Rate (%) 44 | 4 98 30 Regions Visited 2 Branch Regions 1 Pre-discovered Areas . | . . . Known Exits Taken . | . . . Unknown Exits Taken 2 | 1 1 . Scrap Searched . | . . . Spaces Dug 12 | . . 12 Terrain Destroyed 87 | . 11 76 Melee . | . . . Projectile . | . . . AOE 87 | . 11 76 Terrain Rammed . | . . . Walls Destroyed . | . . . Machines Disabled . | . . . Actions | -11 -10 -10 --------- Run | Yrd Mat Min Total 1591 | 91 1332 168 Wait 50 | . 28 22 Move 1340 | 63 1148 129 Hop . | . . . Pick Up 36 | 7 29 . Fast Attach 16 | 6 9 1 Attach 6 | . 4 2 Detach 1 | . 1 . Swap 13 | 2 8 3 Drop 19 | . 19 . Fire 108 | 13 85 10 Melee 1 | . . 1 Ram . | . . . Kick . | . . . Crush 1 | . 1 . Escape Stasis . | . . . Rewire . | . . . Trap . | . . . Miscellaneous . | . . . Route ------- -11/Scrapyard -10/Materials (discovered 5 exits: [*Mat x3] / [*Min x2]) -10/Mines History --------- Turn | Location | Event 11 | -11/Scrapyard | Discovered new exit (range 16) 151 | -11/Scrapyard | Entered Materials 306 | -10/Materials | Build established: Mutant 373 | -10/Materials | Destroyed 8 combat bots 421 | -10/Materials | Lost 3 parts (1n2w) 626 | -10/Materials | Discovered new exit (range 8) 690 | -10/Materials | Repaired Lgt. Treads 794 | -10/Materials | Discovered new exit (range 7) 1626 | -10/Materials | Discovered new exit (range 9) 1804 | -10/Materials | Discovered new exit (range 11) 2304 | -10/Materials | Discovered new exit (range 7) 2320 | -10/Materials | Entered Mines 2340 | -10/Mines | Met a Derelict bent on vengeance 2395 | -10/Mines | Met a Derelict testing a Signal Generator 2516 | -10/Mines | Learned 2 Materials zone layouts 2533 | -10/Mines | Assembled infested the area 2538 | -10/Mines | Assisted by a Guerilla fighting off Assembled 2568 | -10/Mines | Core integrity fell below 50% 2571 | -10/Mines | Destroyed 9 combat bots 2578 | -10/Mines | Core integrity fell below 20% 2579 | -10/Mines | Destroyed by D-53 Grenadier with Mini Grenade Launcher Last Messages --------------- 02564_ D-53 Grenadier knocked back. 02565_ K-01 Serf collects debris. 02567_ ZI-X4R(h) destroyed. 02567_ Imp. Ion Engine destroyed. 02568_ D-53 Grenadier suffers critical hit (Smash). 02568_ Destroyed Shock Absorption System. 02568_ D-53 Grenadier system corrupted by crushing effect. 02569_ Lgt. Treads destroyed. 02569_ D-53 Grenadier destroyed. 02569_ K-01 Serf destroyed. 02569_ K-01 Serf collects debris. 02572_ The unstable cave ceiling collapses. 02573_ K-01 Serf collects debris. 02573_ K-01 Serf destroyed. 02576_ The unstable cave ceiling collapses. 02576_ Matter Pump disabled. 02577_ The unstable cave ceiling collapses. 02578_ K-01 Serf collects debris. Map ----- +----------------------------------------------------+ | ?????????????????????????????????????????????????? | | ?????????????????????????????????????????????????? | | ?????????????????????????????????????????????????? | | ?????????????????????????????????????????????????? | | ?????????????????????????????????????????????????? | | ?????????????????????????????????????????????????? | | ?????????????????????????????????????????????????? | | ?????????????????????????????????????????????????? | | ?????????????????????????????????????????????????? | | ?????????????????????????????????????????????????? | | ?????????????????????????????????????????????????? | | ?????????????????????????????????????????????????? | | ?????????????????????????????????????????????????? | | ?????????? ??????????????????????????????????????? | | ???????## ?????????????????????????????????????? | | ???????## ????????????????????????????????????? | | ???????## ???????????????????????????????????? | | ???????### ???????????????????????????????????? | | ????????### ??????????????????????????????????? | | ?????????### ###??#########???????????????????? | | ??????????### ###############????????####??????? | | ?????????##### # ## ### ???? ####?????? | | ?????????### # ###???? ###?????? | | ??###??#### ##???? ##?????? | | ??## ### ##??## ##?????? | | ? % % % k @ ###### ###????? | | ??##% ## ##### ####???? | | ??## ??##### # # ###???? | | ?????????#### ##???? | | ??????????### # # d= #####? | | ???????????## #### * "" #####? | | ???????????## ???## m "" ? | | ???????????## ???## # ??? | | ?????????????????## # ####### ##?????? | | ?????????????????############# ###?????? | | ?????????????????#######????## r #r ####??????? | | ????????????????????????? ### #####??????? | | ?????????????????????????#### ## ###????????? | | ?????????????????????????##### ## ###?#######?? | | ???????????????????????????### # ##############? | | ????????????????????????????# # ######## #### | | ????????????????????????????? ## ### | | ???????????????????????????? ### # | | ???????????????????????????# ######### ##### | | ???????????????????????????########### ######### | | ???????????????????????????###??????## ##?####### | | ????????????????????????????????????## ########### | | ????????????????????????????????????## ########### | | ????????????????????????????????????## | | ????????????????????????????????????############# | +----------------------------------------------------+ Best States ------------- Heat Dissipation 25 Energy Generation 12 Energy Capacity 265 Matter Stores 300 Matter Capacity 300 Sight Range 16 Terrain Scan Density 10 Evasion (%) 50 Recoil Reduction 2 Authchip Count 2 Item Schematics ----------------- None Robot Schematics ------------------ None Fabricated ------------ Nothing Alien Tech Used ----------------- None Achievements -------------- None Challenges ------------ None Game ------ Seed SignalCryofiberWell Manual? 0 Play Time 00:17:55 Cumulative 79.9 hours Start 2024.04.19 @ 02:47:30 End 2024.04.19 @ 03:05:18 Sessions 1 Manual Loads 0 Difficulty Rogue Special Mode None Game No. 99 Rogue 99 Adventurer 0 Explorer 0 Win Type - Total 0 Types 0/0/0/0/0/0/0/0/0 Lore% 20 Gallery% 45 Achievement% 30 Wizard Run 0 Options --------- Layout 1 ASCII 0 Keyboard 1 Movement Vi Keybinds 0 Fullscreen 1 Font 24/Smallcaps Map View 50x35 Zoom Use 0% Tactical HUD 1 Map Filters NONE Filters NONE Steam 1 RUN: 5e2097c4-621d-45d6-87bb-f4e4a3781eb4